fUSD/lending_fUSD_20240210
["ID","MTS","AMOUNT","RATE_DAILY","PERIOD"]
[313672117,1707567365632,7431.86390348,0.000225,2]
[313672118,1707567383338,168.97,0.00021777,2]
[313672119,1707567418911,185.67,0.00021618,2]
[313672120,1707567428579,25441.05704305,0.00022265,2]
[313672121,1707567428900,25441.05704305,0.00022275,2]
[313672122,1707567442334,364.31608377,0.000225,2]
[313672123,1707567444270,7431.86390348,0.000225,2]
[313672124,1707567462829,180.04349866,0.00022258,2]
[313672125,1707567463130,180.04349866,0.00022281,2]
[313672126,1707567472195,7487.3681217,0.00022258,2]
[313672127,1707567472484,7487.3681217,0.00022275,2]
[313672128,1707567473651,28913.34,0.000225,2]
[313672129,1707567482561,200.0,0.0002162,2]
[313672130,1707567490828,2147.72120821,0.00022268,2]
[313672131,1707567491150,2147.72120821,0.00022285,2]
[313672132,1707567502013,269.48655973,0.00022263,2]
[313672133,1707567502267,269.48655973,0.000223,2]
[313672134,1707567503285,250.0,0.00021609,2]
[313672135,1707567520918,364.31608377,0.000225,2]
[313672136,1707567555411,224.08,0.00019668,2]
[313672137,1707567555603,224.08,0.00021932,2]
[313672138,1707567573266,-500.0,0.00022501,2]
[313672139,1707567584592,566.0855557,0.00022446,2]
[313672140,1707567592291,157.95,0.00021587,2]
[313672141,1707567601342,364.31608377,0.000225,2]
[313672142,1707567622137,179.16584314,0.00021932,2]
[313672143,1707567630412,161.00387835,0.00022436,2]
[313672144,1707567669515,636659.16618423,0.000225,2]
[313672145,1707567672362,364.31608377,0.000225,2]
[313672146,1707567681021,87606.14317801,0.000225,2]
[313672147,1707567696428,86135.28,0.000225,2]
[313672148,1707567715759,204.4,0.00021625,2]
[313672149,1707567734471,303664.76,0.000225,2]
[313672150,1707567776515,161.00387832,0.0002248,2]
[313672151,1707567803186,586.1,0.00021636,2]
[313672152,1707567848998,75400.00451221,0.000225,2]
[313672153,1707567893479,166.75523597,0.0002242,2]
[313672154,1707567916882,161.00387832,0.00022447,2]
[313672155,1707567934703,150.0,0.000224,2]
[313672156,1707567934741,150.0,0.00022494,2]
[313672157,1707567934815,150.0,0.00022365,2]
[313672158,1707567934857,150.0,0.00022426,2]
[313672159,1707567934978,150.0,0.00022376,2]
[313672160,1707567994761,150.0,0.0002231,2]
[313672161,1707567994807,150.0,0.00022444,2]
[313672162,1707567994864,150.0,0.000223,2]
[313672163,1707567997848,302.63796271,0.00022356,2]
[313672164,1707567997874,1500.0,0.00022291,2]
[313672165,1707568023206,201.67,0.0001977,2]
[313672166,1707568023403,201.67,0.00022034,2]
[313672170,1707568042622,161.00387832,0.0002248,2]
[313672171,1707568121143,185.67,0.00021689,2]
[313672185,1707568232169,-1000.0,0.00022501,2]
[313672186,1707568232178,-150.0,0.00022517,2]
[313672187,1707568232187,-500.0,0.00022529,2]
[313672188,1707568232197,-500.0,0.00022529,2]
[313672189,1707568232206,-448.19189825,0.00022529,2]
[313672190,1707568232218,-51.80810175,0.00022529,2]
[313672191,1707568232227,-500.0,0.00022529,2]
[313672192,1707568232238,-500.0,0.00022529,2]
[313672193,1707568232257,-500.0,0.00022529,2]
[313672194,1707568232269,-500.0,0.00022529,2]
[313672195,1707568232279,-500.0,0.00022529,2]
[313672196,1707568232288,-394.00643361,0.00022529,2]
[313672197,1707568232298,-500.0,0.00022529,2]
[313672198,1707568232307,-500.0,0.00022529,2]
[313672199,1707568232317,-556.70178853,0.00022529,2]
[313672200,1707568232327,-500.0,0.00022529,2]
[313672201,1707568232337,-500.0,0.00022529,2]
[313672202,1707568232347,-500.0,0.00022529,2]
[313672203,1707568232357,-37.00700046,0.00022529,2]
[313672204,1707568232381,-462.99299954,0.00022529,2]
[313672205,1707568232391,-150.0,0.00022529,2]
[313672206,1707568232401,-500.0,0.00022529,2]
[313672207,1707568232411,-60.44377726,0.00022529,2]
[313672208,1707568232423,-439.55622274,0.00022529,2]
[313672209,1707568232433,-500.0,0.00022529,2]
[313672210,1707568232443,-500.0,0.00022529,2]
[313672211,1707568232454,-169.74202281,0.00022529,2]
[313672212,1707568232476,-330.25797719,0.00022529,2]
[313672213,1707568232486,-500.0,0.00022529,2]
[313672214,1707568232496,-462.67288703,0.00022529,2]
[313672226,1707568238545,-37.32711297,0.00022529,2]
[313672227,1707568238554,-500.0,0.00022529,2]
[313672228,1707568238563,-500.0,0.00022529,2]
[313672229,1707568238573,-500.0,0.00022529,2]
[313672230,1707568238582,-500.0,0.00022529,2]
[313672231,1707568238591,-500.0,0.00022529,2]
[313672232,1707568238600,-500.0,0.00022529,2]
[313672233,1707568238609,-500.0,0.00022529,2]
[313672234,1707568238619,-500.0,0.00022529,2]
[313672235,1707568238628,-500.0,0.00022529,2]
[313672236,1707568238637,-657.4,0.00022529,2]
[313672237,1707568238646,-460.00288703,0.00022529,2]
[313672238,1707568240102,-39.99711297,0.00022529,2]
[313672239,1707568240111,-500.0,0.00022529,2]
[313672240,1707568240124,-500.0,0.00022529,2]
[313672241,1707568240133,-500.0,0.00022529,2]
[313672242,1707568240143,-331.48860626,0.00022529,2]
[313672243,1707568240152,-500.0,0.00022529,2]
[313672244,1707568240162,-500.0,0.00022529,2]
[313672245,1707568240172,-614.06,0.00022529,2]
[313672246,1707568240180,-469.9221204,0.00022529,2]
[313672247,1707568240189,-500.0,0.00022529,2]
[313672248,1707568240200,-2633.83216037,0.00022529,2]
[313672267,1707568241537,-74.41783963,0.00022529,2]
[313672268,1707568241547,-1817.3,0.00022529,2]
[313672269,1707568241556,-1019.89,0.00022529,2]
[313672270,1707568241566,-1303.03361837,0.00022529,2]
[313672338,1707568243276,-1847.50373523,0.00022529,2]
[313672339,1707568243489,-844.0526464,0.00022529,2]
[313672340,1707568243499,-500.0,0.00022529,2]
[313672341,1707568243509,-500.0,0.00022529,2]
[313672342,1707568243518,-500.0,0.00022529,2]
[313672343,1707568243529,-500.0,0.00022529,2]
[313672344,1707568243539,-1673.77,0.00022529,2]
[313672346,1707568243549,-500.0,0.00022529,2]
[313672348,1707568243558,-500.0,0.00022529,2]
[313672349,1707568243569,-4214.03,0.00022529,2]
[313672350,1707568243579,-802.09,0.00022529,2]
[313672351,1707568243589,-202.89526906,0.00022529,2]
[313672352,1707568243599,-500.0,0.00022529,2]
[313672354,1707568243609,-1669.88,0.00022529,2]
[313672356,1707568243619,-2005.83,0.00022529,2]
[313672359,1707568243629,-500.0,0.00022529,2]
[313672361,1707568243639,-716.47,0.00022529,2]
[313672363,1707568243648,-1061.86,0.00022529,2]
[313672365,1707568243658,-500.0,0.00022529,2]
[313672367,1707568243667,-566.21,0.00022529,2]
[313672368,1707568243678,-500.0,0.00022529,2]
[313672369,1707568243687,-500.0,0.00022529,2]
[313672370,1707568243698,-500.0,0.00022529,2]
[313672371,1707568243708,-500.0,0.00022529,2]
[313672372,1707568243717,-500.0,0.00022529,2]
[313672373,1707568243727,-1186.43,0.00022529,2]
[313672374,1707568243737,-500.0,0.00022529,2]
[313672375,1707568243746,-500.0,0.00022529,2]
[313672376,1707568243756,-1837.52,0.00022529,2]
[313672377,1707568243766,-500.0,0.00022529,2]
[313672378,1707568243777,-547.22,0.00022529,2]
[313672379,1707568243787,-572.08,0.00022529,2]
[313672380,1707568243797,-572.93325133,0.00022529,2]
[313672381,1707568243807,-500.0,0.00022529,2]
[313672382,1707568243816,-614.16,0.00022529,2]
[313672383,1707568243826,-618.69,0.00022529,2]
[313672384,1707568243836,-500.0,0.00022529,2]
[313672385,1707568243846,-2366.39,0.00022529,2]
[313672386,1707568243858,-500.0,0.00022529,2]
[313672387,1707568243870,-500.0,0.00022529,2]
[313672388,1707568243879,-500.0,0.00022529,2]
[313672389,1707568243889,-2446.82,0.00022529,2]
[313672390,1707568243899,-1893.26,0.00022529,2]
[313672391,1707568243910,-4889.87,0.00022529,2]
[313672392,1707568243920,-500.0,0.00022529,2]
[313672393,1707568243931,-1067.67,0.00022529,2]
[313672394,1707568243942,-1545.74,0.00022529,2]
[313672395,1707568243953,-1013.07,0.00022529,2]
[313672396,1707568243963,-500.0,0.00022529,2]
[313672397,1707568243973,-500.0,0.00022529,2]
[313672398,1707568243982,-1138.02,0.00022529,2]
[313672399,1707568243992,-500.0,0.00022529,2]
[313672400,1707568244001,-500.0,0.00022529,2]
[313672401,1707568244011,-3324.89,0.00022529,2]
[313672402,1707568244022,-500.0,0.00022529,2]
[313672403,1707568244032,-3678.9,0.00022529,2]
[313672404,1707568244041,-500.0,0.00022529,2]
[313672405,1707568244051,-1059.25,0.00022529,2]
[313672406,1707568244061,-500.0,0.00022529,2]
[313672407,1707568244072,-604.07,0.00022529,2]
[313672408,1707568244084,-575.69,0.00022529,2]
[313672409,1707568244093,-667.04,0.00022529,2]
[313672410,1707568244103,-500.0,0.00022529,2]
[313672411,1707568244114,-166.75523595,0.00022536,2]
[313672412,1707568244128,-150.0,0.0002254,2]
[313672413,1707568244139,-5724.29495964,0.00022544,2]
[313672414,1707568244150,-334.66017313,0.00022544,2]
[313672415,1707568244163,-876.75633409,0.00022544,3]
[313672416,1707568244174,-210.0,0.00022545,2]
[313672417,1707568244185,-167.47055341,0.00022545,2]
[313672418,1707568244196,-3045.07356559,0.00022545,2]
[313672419,1707568244206,-2249.02,0.00022545,2]
[313672420,1707568244217,-500.0,0.00022545,2]
[313672421,1707568244228,-500.0,0.00022545,2]
[313672422,1707568244238,-2229.49,0.00022545,2]
[313672423,1707568244248,-1862.06,0.00022545,2]
[313672424,1707568244257,-14865.34,0.00022545,2]
[313672425,1707568244268,-1009.42,0.00022545,2]
[313672426,1707568244277,-500.0,0.00022545,2]
[313672427,1707568244288,-545.82,0.00022545,2]
[313672428,1707568244300,-500.0,0.00022545,2]
[313672429,1707568244311,-7655.03,0.00022545,2]
[313672430,1707568244321,-500.0,0.00022545,2]
[313672431,1707568244331,-500.0,0.00022545,2]
[313672432,1707568244342,-500.0,0.00022545,2]
[313672433,1707568244354,-755.11,0.00022545,2]
[313672434,1707568244365,-500.0,0.00022545,2]
[313672435,1707568244375,-1400.49,0.00022545,2]
[313672436,1707568244385,-500.0,0.00022545,2]
[313672437,1707568244396,-500.0,0.00022545,2]
[313672438,1707568244406,-500.0,0.00022545,2]
[313672439,1707568244417,-539.34,0.00022545,2]
[313672440,1707568244429,-1818.07,0.00022545,2]
[313672441,1707568244439,-500.0,0.00022545,2]
[313672442,1707568244450,-544.89,0.00022545,2]
[313672443,1707568244461,-2975.85,0.00022545,2]
[313672444,1707568244471,-1890.32,0.00022545,2]
[313672445,1707568244481,-1350.07,0.00022545,2]
[313672446,1707568244491,-653.15,0.00022545,2]
[313672447,1707568244501,-500.0,0.00022545,2]
[313672448,1707568244511,-2674.86,0.00022545,2]
[313672449,1707568244520,-500.18,0.00022545,2]
[313672450,1707568244531,-500.0,0.00022545,2]
[313672451,1707568244541,-500.0,0.00022545,2]
[313672452,1707568244551,-913.74,0.00022545,2]
[313672453,1707568244561,-500.0,0.00022545,2]
[313672454,1707568244571,-1416.93,0.00022545,2]
[313672455,1707568244582,-500.0,0.00022545,2]
[313672456,1707568244591,-500.0,0.00022545,2]
[313672457,1707568244601,-5452.68,0.00022545,2]
[313672458,1707568244610,-1698.63,0.00022545,2]
[313672459,1707568244621,-500.0,0.00022545,2]
[313672460,1707568244631,-720.38,0.00022545,2]
[313672461,1707568244640,-1619.17,0.00022545,2]
[313672462,1707568244651,-500.0,0.00022545,2]
[313672463,1707568244660,-11043.52,0.00022545,2]
[313672464,1707568244670,-500.0,0.00022545,2]
[313672465,1707568244681,-500.0,0.00022545,2]
[313672466,1707568244690,-592.33,0.00022545,2]
[313672467,1707568244701,-500.0,0.00022545,2]
[313672468,1707568244710,-545.67,0.00022545,2]
[313672469,1707568244720,-1739.35,0.00022545,2]
[313672470,1707568244731,-500.0,0.00022545,2]
[313672471,1707568244740,-500.0,0.00022545,2]
[313672472,1707568244750,-2884.0,0.00022545,2]
[313672473,1707568244760,-2238.12,0.00022545,2]
[313672474,1707568244769,-791.64,0.00022545,2]
[313672475,1707568244779,-2507.84,0.00022545,2]
[313672476,1707568244788,-500.0,0.00022545,5]
[313672477,1707568244798,-2499.28,0.00022545,2]
[313672478,1707568244808,-500.0,0.00022545,2]
[313672479,1707568244817,-1733.09,0.00022545,2]
[313672480,1707568244827,-3666.0,0.00022545,2]
[313672481,1707568244836,-500.0,0.00022545,2]
[313672482,1707568244846,-500.0,0.00022545,2]
[313672483,1707568244856,-793.3,0.00022545,2]
[313672484,1707568244866,-2115.53,0.00022545,2]
[313672485,1707568244875,-5113.15,0.00022545,2]
[313672486,1707568244885,-500.0,0.00022546,2]
[313672487,1707568244894,-500.0,0.00022546,2]
[313672488,1707568244904,-901.48,0.00022546,2]
[313672489,1707568244914,-595.82058807,0.00022546,2]
[313672490,1707568244923,-735.57,0.00022546,2]
[313672491,1707568244933,-500.0,0.00022546,2]
[313672492,1707568244943,-500.0,0.00022546,2]
[313672493,1707568244952,-500.0,0.00022546,2]
[313672494,1707568244962,-904.59,0.00022546,2]
[313672495,1707568244972,-445.48919012,0.00022546,2]
[313672496,1707568244982,-500.0,0.00022546,2]
[313672497,1707568244991,-500.0,0.00022546,2]
[313672498,1707568245001,-500.0,0.00022546,2]
[313672499,1707568245010,-500.0,0.00022546,2]
[313672500,1707568245020,-2019.15,0.00022546,2]
[313672501,1707568245029,-536.69,0.00022546,2]
[313672502,1707568245039,-500.0,0.00022546,2]
[313672503,1707568245048,-500.0,0.00022546,2]
[313672504,1707568245058,-562.15748754,0.00022546,2]
[313672505,1707568245067,-500.0,0.00022546,2]
[313672506,1707568245077,-500.0,0.00022546,2]
[313672507,1707568245090,-500.0,0.00022546,2]
[313672508,1707568245101,-500.0,0.00022546,2]
[313672509,1707568245111,-500.0,0.00022546,2]
[313672510,1707568245330,-500.0,0.00022546,2]
[313672511,1707568245342,-291.55101893,0.00022546,2]
[313672512,1707568245353,-500.0,0.00022546,2]
[313672513,1707568245365,-500.0,0.00022546,2]
[313672514,1707568245376,-500.0,0.00022546,2]
[313672515,1707568245387,-500.0,0.00022546,2]
[313672516,1707568245624,-500.0,0.00022546,2]
[313672517,1707568245634,-169.25383713,0.00022546,2]
[313672518,1707568245644,-500.0,0.00022546,2]
[313672519,1707568245653,-500.0,0.00022546,2]
[313672520,1707568245663,-541.12,0.00022546,2]
[313672521,1707568245672,-500.0,0.00022546,2]
[313672522,1707568245681,-500.0,0.00022546,2]
[313672523,1707568245691,-730.4,0.00022546,2]
[313672524,1707568245700,-500.0,0.00022546,2]
[313672525,1707568245709,-546.23,0.00022546,2]
[313672526,1707568245718,-500.0,0.00022546,2]
[313672527,1707568245728,-500.0,0.00022546,2]
[313672528,1707568245738,-2189.22,0.00022546,2]
[313672529,1707568245747,-500.0,0.00022546,2]
[313672530,1707568245757,-2533.464,0.00022546,2]
[313672531,1707568245766,-500.0,0.00022546,2]
[313672532,1707568245775,-240.74710084,0.00022546,2]
[313672533,1707568246521,-500.0,0.00022529,2]
[313672534,1707568246530,-218.53525099,0.00022546,2]
[313672535,1707568246550,-40.71764817,0.00022546,2]
[313672536,1707568246560,-331.11918612,0.00022546,2]
[313672537,1707568246593,-168.88081388,0.00022546,2]
[313672538,1707568246603,-542.43987379,0.00022546,2]
[313672539,1707568246612,-238.07411559,0.00022546,2]
[313672540,1707568246622,-328.33945816,0.00022546,2]
[313672541,1707568246631,-7007.78,0.00022546,2]
[313672542,1707568246640,-1563.13,0.00022546,2]
[313672543,1707568246650,-500.0,0.00022546,2]
[313672544,1707568246660,-348.84617499,0.00022546,2]
[313672545,1707568246669,-500.0,0.00022546,2]
[313672546,1707568246678,-500.0,0.00022546,2]
[313672547,1707568246688,-1273.67,0.00022546,2]
[313672548,1707568246697,-500.0,0.00022546,2]
[313672549,1707568246707,-500.0,0.00022546,2]
[313672550,1707568246716,-13162.22,0.00022546,2]
[313672551,1707568246726,-500.0,0.00022546,2]
[313672552,1707568246735,-500.0,0.00022546,2]
[313672553,1707568246744,-500.0,0.00022546,2]
[313672554,1707568246754,-1250.96,0.00022546,2]
[313672555,1707568246763,-510.28,0.00022546,2]
[313672556,1707568246772,-1683.23,0.00022546,2]
[313672557,1707568246782,-546.68484972,0.00022546,2]
[313672558,1707568246791,-1126.25,0.00022546,2]
[313672559,1707568246801,-500.0,0.00022546,2]
[313672560,1707568246810,-500.0,0.00022546,2]
[313672561,1707568246819,-563.0348159,0.00022546,2]
[313672562,1707568246828,-700.36,0.00022546,2]
[313672563,1707568246837,-558.1,0.00022546,2]
[313672564,1707568246846,-466.74555541,0.00022546,2]
[313672565,1707568246967,-33.25444459,0.00022546,2]
[313672566,1707568246976,-2767.0,0.00022546,2]
[313672567,1707568246986,-500.0,0.00022546,2]
[313672568,1707568246995,-500.0,0.00022546,2]
[313672569,1707568247004,-500.0,0.00022546,2]
[313672570,1707568247014,-500.0,0.00022546,2]
[313672571,1707568247023,-2465.84,0.00022546,2]
[313672572,1707568247032,-1501.25,0.00022546,2]
[313672573,1707568247041,-1928.83,0.00022546,2]
[313672574,1707568247050,-500.0,0.00022546,2]
[313672575,1707568247061,-500.0,0.00022546,2]
[313672576,1707568247070,-500.0,0.00022546,2]
[313672577,1707568247079,-679.39,0.00022546,2]
[313672578,1707568247089,-500.0,0.00022546,2]
[313672579,1707568247099,-500.0,0.00022546,2]
[313672580,1707568247109,-1981.75,0.00022546,2]
[313672581,1707568247120,-500.0,0.00022546,5]
[313672582,1707568247131,-1997.18191161,0.00022546,2]
[313672583,1707568266972,212.09610225,0.00021918,2]
[313672584,1707568271854,2000.0,0.00021803,2]
[313672585,1707568301217,531.12,0.00021777,2]
[313672586,1707568307244,158.33,0.0002194,2]
[313672587,1707568449148,198.85,0.00021796,2]
[313672588,1707568555244,181.5,0.00019841,2]
[313672589,1707568555469,181.5,0.00022105,2]
[313672590,1707568622244,166.75523595,0.00022429,2]
[313672592,1707568699832,5841.83,0.00021764,2]
[313672593,1707568713822,209.0,0.00022039,2]
[313672594,1707568760589,815.23,0.00021918,2]
[313672595,1707568772387,93121.0,0.00022365,2]
[313672597,1707568854148,575.1,0.00021762,2]
[313672598,1707569022793,166.75523595,0.00022429,2]
[313672599,1707569043886,582.16626322,0.00022429,2]
[313672600,1707569044174,582.16626321,0.00022444,2]
[313672601,1707569047948,185.67,0.0002177,2]
[313672602,1707569065999,163.35,0.00019852,2]
[313672603,1707569066091,163.35,0.00022116,2]
[313672604,1707569110008,165.7,0.00021771,2]
[313672605,1707569297938,100143.50730668,0.00022,2]
[313672615,1707569329183,539.92,0.00021731,2]
[313672621,1707569383372,166.75523595,0.00022444,2]
[313672626,1707569434028,-150.0,0.00022521,2]
[313672627,1707569434039,-511.68277074,0.00022529,2]
[313672628,1707569434092,-485.38480676,0.00022529,2]
[313672629,1707569434103,-500.0,0.00022529,2]
[313672630,1707569434112,-300.87817229,0.00022529,2]
[313672631,1707569434122,-500.0,0.00022529,2]
[313672632,1707569434132,-438.27467784,0.00022544,2]
[313672633,1707569434145,-149.3458609,0.00022544,2]
[313672634,1707569434155,-646.08594234,0.00022544,2]
[313672635,1707569434164,-500.0,0.00022544,7]
[313672636,1707569434174,-229.57434753,0.00022544,2]
[313672637,1707569434193,-270.42565247,0.00022544,2]
[313672638,1707569434204,-500.0,0.00022544,2]
[313672639,1707569434215,-170.47646833,0.00022544,2]
[313672640,1707569434234,-329.52353167,0.00022544,2]
[313672641,1707569434244,-54.68414592,0.00022544,2]
[313672642,1707569434258,-445.31585408,0.00022544,2]
[313672643,1707569434266,-500.0,0.00022544,2]
[313672644,1707569434276,-134.21827302,0.00022544,2]
[313672645,1707569434297,-365.78172698,0.00022544,2]
[313672646,1707569434307,-500.0,0.00022544,2]
[313672647,1707569434316,-10.67858478,0.00022544,2]
[313672648,1707569434360,-139.32141522,0.00022544,2]
[313672649,1707569434370,-500.0,0.00022544,2]
[313672650,1707569434379,-500.0,0.00022544,2]
[313672651,1707569434389,-500.0,0.00022544,2]
[313672652,1707569434399,-500.0,0.00022544,2]
[313672653,1707569434408,-239.2718338,0.00022544,2]
[313672654,1707569434432,-260.7281662,0.00022544,2]
[313672655,1707569434442,-500.0,0.00022544,2]
[313672656,1707569434452,-500.0,0.00022544,2]
[313672657,1707569434461,-476.77245317,0.00022544,2]
[313672660,1707569437472,-23.22754683,0.00022544,2]
[313672661,1707569437484,-500.0,0.00022544,2]
[313672662,1707569437493,-19.25331036,0.00022544,2]
[313672663,1707569437505,-480.74668964,0.00022544,2]
[313672664,1707569437515,-500.0,0.00022544,2]
[313672665,1707569437526,-500.0,0.00022544,2]
[313672666,1707569437535,-277.3967071,0.00022544,2]
[313672667,1707569437653,-222.6032929,0.00022544,2]
[313672668,1707569437662,-500.0,0.00022544,2]
[313672669,1707569437672,-500.0,0.00022544,2]
[313672670,1707569437681,-500.0,0.00022544,2]
[313672671,1707569437691,-500.0,0.00022544,2]
[313672672,1707569437700,-323.78247759,0.00022544,2]
[313672673,1707569437711,-176.21752241,0.00022544,2]
[313672674,1707569437721,-500.0,0.00022544,2]
[313672675,1707569437730,-106.31230871,0.00022544,2]
[313672676,1707569437762,-393.68769129,0.00022544,2]
[313672677,1707569437771,-198.76045791,0.00022544,2]
[313672686,1707569440127,-431.24954209,0.00022544,2]
[313672687,1707569440139,-500.0,0.00022544,2]
[313672688,1707569440149,-500.0,0.00022544,2]
[313672689,1707569440158,-500.0,0.00022544,2]
[313672690,1707569440168,-2395.14,0.00022544,2]
[313672691,1707569440178,-760.25,0.00022544,2]
[313672692,1707569440187,-500.0,0.00022544,2]
[313672693,1707569440198,-1906.79,0.00022544,2]
[313672694,1707569440208,-500.0,0.00022544,2]
[313672695,1707569440217,-500.0,0.00022544,2]
[313672696,1707569440225,-1784.48,0.00022544,2]
[313672697,1707569440235,-500.0,0.00022544,2]
[313672698,1707569440244,-500.0,0.00022544,2]
[313672699,1707569440254,-500.0,0.00022544,2]
[313672700,1707569440263,-2136.6,0.00022544,2]
[313672701,1707569440272,-523.07,0.00022544,2]
[313672702,1707569440282,-500.0,0.00022544,2]
[313672703,1707569440291,-14245.95,0.00022544,2]
[313672704,1707569440300,-434.42515797,0.00022544,2]
[313672705,1707569440310,-611.21840897,0.00022544,2]
[313672706,1707569440319,-7336.07,0.00022544,2]
[313672707,1707569440328,-500.0,0.00022544,2]
[313672708,1707569440337,-500.0,0.00022544,2]
[313672709,1707569440349,-1245.56669261,0.00022544,2]
[313672710,1707569441027,-515.39330739,0.00022544,2]
[313672711,1707569441037,-723.64,0.00022544,2]
[313672712,1707569441046,-534.65478735,0.00022544,2]
[313672713,1707569441055,-500.0,0.00022544,2]
[313672714,1707569441065,-588.57,0.00022544,2]
[313672715,1707569441075,-500.0,0.00022544,2]
[313672716,1707569441085,-500.0,0.00022544,2]
[313672717,1707569441094,-2267.79,0.00022544,2]
[313672718,1707569441104,-562.92191386,0.00022544,2]
[313672719,1707569441113,-500.0,0.00022544,2]
[313672720,1707569441123,-500.0,0.00022544,2]
[313672721,1707569441133,-1922.26,0.00022544,2]
[313672722,1707569441143,-500.0,0.00022544,2]
[313672723,1707569441154,-558.95213334,0.00022544,2]
[313672726,1707569442629,-1045.07786666,0.00022544,2]
[313672727,1707569442639,-2344.87,0.00022544,2]
[313672728,1707569442648,-500.0,0.00022544,2]
[313672729,1707569442657,-2851.86,0.00022544,2]
[313672730,1707569442666,-500.0,0.00022544,2]
[313672731,1707569442676,-704.92,0.00022544,2]
[313672732,1707569442685,-4686.13,0.00022544,2]
[313672733,1707569442694,-863.92,0.00022544,2]
[313672734,1707569442704,-768.67,0.00022544,2]
[313672735,1707569442713,-500.0,0.00022544,2]
[313672736,1707569442721,-500.0,0.00022544,2]
[313672737,1707569442730,-500.0,0.00022544,2]
[313672738,1707569442739,-522.18,0.00022544,2]
[313672739,1707569442750,-500.0,0.00022544,2]
[313672740,1707569442759,-1600.3,0.00022544,2]
[313672741,1707569442768,-1481.34,0.00022544,2]
[313672742,1707569442778,-1137.0,0.00022544,2]
[313672743,1707569442787,-500.0,0.00022544,2]
[313672744,1707569442797,-500.0,0.00022544,2]
[313672747,1707569442806,-1017.61,0.00022544,2]
[313672748,1707569442815,-1342.13,0.00022544,2]
[313672749,1707569442824,-1090.6,0.00022544,2]
[313672750,1707569442834,-500.0,0.00022544,2]
[313672751,1707569442843,-1357.89,0.00022544,2]
[313672752,1707569442854,-2563.41,0.00022544,2]
[313672753,1707569442862,-5378.45,0.00022544,2]
[313672754,1707569442871,-500.0,0.00022544,2]
[313672755,1707569442881,-3348.39,0.00022544,2]
[313672756,1707569442890,-500.0,0.00022544,2]
[313672757,1707569442900,-875.67,0.00022544,2]
[313672758,1707569442909,-500.0,0.00022544,2]
[313672759,1707569442917,-500.0,0.00022544,2]
[313672760,1707569442927,-1015.11,0.00022544,2]
[313672761,1707569442937,-500.0,0.00022544,2]
[313672762,1707569442947,-10583.37,0.00022544,2]
[313672763,1707569442956,-1293.82,0.00022544,2]
[313672764,1707569442966,-500.0,0.00022544,2]
[313672765,1707569442975,-500.0,0.00022544,2]
[313672766,1707569442984,-500.0,0.00022544,2]
[313672767,1707569442994,-500.0,0.00022544,2]
[313672768,1707569443003,-548.24,0.00022544,2]
[313672769,1707569443012,-500.0,0.00022544,2]
[313672770,1707569443244,-516.86,0.00022544,2]
[313672771,1707569443254,-524.42,0.00022544,2]
[313672772,1707569443264,-512.52,0.00022544,2]